Workbook

Sheet Summary Financials
A1: Income | C1: Market Rate Proforma | D1: Proforma Assumptions
A2: Rental Income | C2: Most Likely
A3: Apartment Rental Income | C3: ='Rent Roll'!H21 -> 163200 | D3: Proforma Rent Roll (next tab)
A4: Vacancy & Collections
A5: Total Rental Income | C5: =C3+C4 -> 163200
A6: Laundry | C6: 2400 | D6: $200/ month
A7: Other Income | C7: 0
A8: Application Fees
A9: Total Other Income | C9: =SUM(C6:C8) -> 2400
A10: Total Income | C10: =(C5+C9) -> 165600
A12: Expenses
A13: Advertising & Promotion
A14: Cleaning Expense
A15: Insurance | C15: 4000
A16: Landscaping | C16: 600 | D16: 100x6 months
A17: Pest Control | C17: 0
A18: Repairs & Maintenance | C18: 2550 | D18: $150/unit/year
A19: Real Estate Tax | C19: 12000
A20: Trash Removal | C20: 2400 | D20: $200x12
A21: Utilities
A22: Electric | C22: 1200 | D22: $100x12
A23: Gas | C23: 2400 | D23: $200x12
A24: Telephone& Cable | C24: 1800 | D24: Internet for Security Camera System
A25: Water / Sewer | C25: 10200 | D25: 600 per unit
A26: Total Utilities | C26: =SUM(C22:C25) -> 15600
A27: General & Admin.
A28: Rental Registration | C28: 1190 | D28: $70/unit
A29: Professional Fees / Legal
A30: Total General & Admin. | C30: =SUM(C28:C29) -> 1190
A31: Property Management Fee | C31: =0.05*C5 -> 8160 | D31: 5% of Effective Gross Rent
A32: Total Expense | C32: =(SUM(C13:C20))+C26+C30+C31 -> 46500
A33: Expense per suite | C33: =C32/10 -> 4650
A35: Net Operating Income | C35: =C10-C32 -> 119100

Sheet Rent Roll
A1: Unit | B1: Occupants | C1: Size (sf) | D1: Location | E1: Bedrooms | F1: Tenant | G1: Proforma Rent | H1: Total Projected Annual Rent | J1: Se 8 rent
A2: 101 | B2: 1 | D2: 1849 Cliffview | E2: 1 | F2: Occupied | G2: 800 | H2: =G2*12 -> 9600 | J2: 1005
A3: 102 | B3: 1 | D3: 1849 Cliffview | E3: 1 | F3: Occupied | G3: 800 | H3: =G3*12 -> 9600 | J3: 1005
A4: 104 | B4: 1 | D4: 1849 Cliffview | E4: 1 | F4: Occupied | G4: 800 | H4: 9600 | J4: 1005
A5: 105 | B5: 1 | D5: 1849 Cliffview | E5: 1 | F5: Occupied | G5: 800 | H5: 9600 | J5: 1005
A6: 106 | B6: 1 | D6: 1849 Cliffview | E6: 1 | F6: Occupied | G6: 800 | H6: 9600 | J6: 1005
A7: 201 | B7: 1 | D7: 1849 Cliffview | E7: 1 | F7: Occupied | G7: 800 | H7: 9600 | J7: 1005
A8: 202 | B8: 1 | D8: 1849 Cliffview | E8: 1 | F8: Occupied | G8: 800 | H8: =G8*12 -> 9600 | J8: 1005
A9: 203 | B9: 1 | D9: 1849 Cliffview | E9: 1 | F9: Occupied | G9: 800 | H9: 9600 | J9: 1005
A10: 204 | B10: 1 | D10: 1849 Cliffview | E10: 1 | F10: Occupied | G10: 800 | H10: 9600 | J10: 1005
A11: 205 | B11: 1 | D11: 1849 Cliffview | E11: 1 | F11: Occupied | G11: 800 | H11: 9600 | J11: 1005
A12: 206 | B12: 1 | D12: 1849 Cliffview | E12: 1 | F12: Occupied | G12: 800 | H12: 9600 | J12: 1005
A13: 301 | B13: 1 | D13: 1849 Cliffview | E13: 1 | F13: Occupied | G13: 800 | H13: 9600 | J13: 1005
A14: 301 | B14: 1 | D14: 1849 Cliffview | E14: 1 | F14: Occupied | G14: 800 | H14: 9600 | J14: 1005
A15: 303 | B15: 1 | D15: 1849 Cliffview | E15: 1 | F15: Occupied | G15: 800 | H15: 9600 | J15: 1005
A16: 304 | B16: 1 | D16: 1849 Cliffview | E16: 1 | F16: Occupied | G16: 800 | H16: 9600 | J16: 1005
A17: 305 | B17: 1 | D17: 1849 Cliffview | E17: 1 | F17: Occupied | G17: 800 | H17: 9600 | J17: 1005
A18: 306 | B18: 1 | D18: 1849 Cliffview | E18: 1 | F18: Occupied | G18: 800 | H18: 9600 | J18: 1005
F20: Monthly Rent Total | H20: =SUM(G2:G18) -> 13600
F21: Annual Rent Total | H21: =SUM(H20*12) -> 163200
F23: Monthly Gross Revenue Total | H23: =H20 -> 13600
F24: Annual Gross Revenue Total | H24: =(H21) -> 163200

Sheet Sheet1 (hidden)
B1: Paid before | C1: Pending | D1: Estimated
B2: July 1, 2017
A3: Purchase | B3: 78600 | F3: 4500 | G3: check
A4: Roof | B4: 25000 | F4: 2110 | G4: 2016-06-01 | H4: visa
A5: Architect | B5: 47250 | D5: 23750 | F5: 10000 | G5: 2016-06-01 | H5: wire
A6: Civil Engineering | B6: 2800 | C6: 5284.69 | F6: 20000 | G6: 2016-09-01 | H6: visa
A7: Clean Up of yard, gutting building and | B7: 11500 | F7: 10640 | G7: 2016-12-01 | H7: wire
A8: Land Bank | B8: 1586 | F8: =SUM(F3:F7) -> 47250
A9: Fees | B9: 400
A10: Construction | D10: 970000
A11: Insurances to Date and est for build | B11: 10136 | D11: 15000
A12: Property Taxes | B12: 2795 | D12: 2795
B13: =SUM(B3:B12) -> 180067 | C13: 5284.69 | D13: =SUM(D5:D11) -> 1008750 | F13: =SUM(B13:E13) -> 1194101.69
